fUST/lending_fUST_20250930
["ID","MTS","AMOUNT","RATE_DAILY","PERIOD"]
[388416054,1759162232387,-2488.16,0.00023763,2]
[388416055,1759162232397,-480.0,0.00023763,2]
[388416056,1759162232406,-480.0,0.00023763,2]
[388416057,1759162232418,-480.0,0.00023763,2]
[388416058,1759162232427,-480.0,0.00023763,2]
[388416059,1759162232437,-754.78,0.00023763,2]
[388416060,1759162232446,-480.0,0.00023763,2]
[388416061,1759162232458,-480.0,0.00023763,2]
[388416062,1759162232468,-480.0,0.00023763,2]
[388416063,1759162232478,-784.97,0.00023763,2]
[388416064,1759162232488,-500.0,0.00023765,2]
[388416065,1759162232497,-500.0,0.00023765,2]
[388416066,1759162232507,-335.36486002,0.00023765,2]
[388416933,1759162249813,-480.0,0.00023667,2]
[388416946,1759162249947,-1212.62,0.00023668,2]
[388416960,1759162250083,-1152.81,0.00023668,2]
[388416973,1759162250206,-215.55251,0.00023668,2]
[388416986,1759162250331,-493.61,0.00023762,2]
[388416998,1759162250458,-480.0,0.00023762,2]
[388417026,1759162250731,-2741.2,0.00023762,2]
[388417040,1759162250862,-480.0,0.00023762,2]
[388417053,1759162250982,-544.4,0.00023762,2]
[388417067,1759162251112,-642.98,0.00023763,2]
[388417081,1759162251244,-480.0,0.00023763,2]
[388417103,1759162251614,-593.88,0.00023763,2]
[388417115,1759162251719,-507.83,0.00023763,2]
[388417127,1759162251833,-733.16,0.00023763,2]
[388417140,1759162251949,-418.58611225,0.00023763,2]
[388417188,1759162252415,-3802.58,0.00023763,2]
[388417250,1759162253050,-2394.85,0.00023763,2]
[388417263,1759162253170,-1345.19,0.00023763,2]
[388417276,1759162253291,-7.35305243,0.00023765,2]
[388417288,1759162253413,-500.0,0.00023765,2]
[388417301,1759162253538,-500.0,0.00023765,2]
[388417314,1759162253660,-5.22389514,0.00023765,2]
[388417358,1759162254123,-494.77610486,0.00023765,2]
[388417370,1759162254247,-500.0,0.00023765,2]
[388417382,1759162254365,-500.0,0.00023765,2]
[388417394,1759162254483,-500.0,0.00023765,2]
[388417407,1759162254600,-634.2773478,0.00023765,2]
[388417418,1759162254714,-500.0,0.00023765,2]
[388417431,1759162254834,-500.0,0.00023765,2]
[388417443,1759162254953,-149.9981484,0.00023766,2]
[388417455,1759162255075,-480.0,0.00023766,2]
[388417467,1759162255187,-480.0,0.00023766,2]
[388417478,1759162255304,-41.90679788,0.00023766,2]
[388417536,1759162256195,172.32,0.000234,2]
[388417573,1759162256794,-508.04740899,0.00023763,2]
[388417588,1759162256955,-480.0,0.00023667,2]
[388417590,1759162256964,-536.71,0.00023668,2]
[388417592,1759162256974,-30.18259101,0.00023763,2]
[388417594,1759162256984,-250.0,0.00023765,2]
[388417595,1759162256992,-438.09320212,0.00023766,2]
[388417597,1759162257001,-480.0,0.00023766,2]
[388417599,1759162257010,-179.86420687,0.00023766,2]
[388417610,1759162257127,-300.13579313,0.00023766,2]
[388417612,1759162257138,-480.0,0.00023766,2]
[388417614,1759162257147,-565.05420687,0.00023766,2]
[388417626,1759162257279,-7.35305243,0.00023766,2]
[388417636,1759162257387,-376.3127407,0.00023766,2]
[388417638,1759162257396,-123.6872593,0.00023766,2]
[388417649,1759162257513,-356.3127407,0.00023766,2]
[388417651,1759162257523,-143.6872593,0.00023766,2]
[388417663,1759162257647,-336.3127407,0.00023766,2]
[388417665,1759162257657,-163.6872593,0.00023766,2]
[388417691,1759162257952,-316.3127407,0.00023766,2]
[388417709,1759162258147,-178.46336416,0.00023766,2]
[388417727,1759162258323,-320.89663584,0.00023766,2]
[388417729,1759162258332,-179.10336416,0.00023766,2]
[388417739,1759162258435,-300.89663584,0.00023766,2]
[388417741,1759162258445,-199.10336416,0.00023766,2]
[388417752,1759162258562,-280.89663584,0.00023766,2]
[388417754,1759162258572,-219.10336416,0.00023766,2]
[388417765,1759162258678,-395.96663584,0.00023766,2]
[388417767,1759162258687,-238.31071196,0.00023766,2]
[388417779,1759162258819,-241.68928804,0.00023766,2]
[388417780,1759162258829,-258.31071196,0.00023766,2]
[388417781,1759162258940,-221.68928804,0.00023766,2]
[388417782,1759162258949,-278.31071196,0.00023766,2]
[388417783,1759162259064,-149.9981484,0.00023766,2]
[388417784,1759162259170,-51.69113964,0.00023766,2]
[388417785,1759162259179,-428.30886036,0.00023766,2]
[388417786,1759162259288,-51.69113964,0.00023766,2]
[388417787,1759162259298,-428.30886036,0.00023766,2]
[388417792,1759162259403,-51.69113964,0.00023766,2]
[388417794,1759162259412,-428.30886036,0.00023766,2]
[388417848,1759162259970,-51.69113964,0.00023766,2]
[388417861,1759162260096,-480.0,0.00023766,2]
[388417875,1759162260226,-579.04,0.00023766,2]
[388417887,1759162260346,-593.92,0.00023766,2]
[388417900,1759162260479,-480.0,0.00023766,2]
[388417913,1759162260600,-480.0,0.00023766,2]
[388417925,1759162260714,-480.0,0.00023766,2]
[388417937,1759162260828,-480.0,0.00023766,2]
[388417950,1759162260944,-272.78391467,0.00023766,2]
[388417963,1759162261064,-480.0,0.00023766,2]
[388417976,1759162261184,-318.58338537,0.00023766,2]
[388417987,1759162261301,-37.61312064,0.00023766,2]
[388418019,1759162261631,-532.74687936,0.00023766,2]
[388418031,1759162261744,-482.26776614,0.00023766,2]
[388418038,1759162261855,-480.0,0.00023766,2]
[388418040,1759162261969,-480.0,0.00023766,2]
[388418053,1759162262085,-681.34,0.00023766,2]
[388418066,1759162262201,-523.65,0.00023766,2]
[388418079,1759162262315,-480.0,0.00023766,2]
[388418092,1759162262432,-480.0,0.00023766,2]
[388418105,1759162262551,-480.0,0.00023766,2]
[388418153,1759162263036,-1000.0,0.00023766,2]
[388418161,1759162263178,-1000.0,0.00023766,2]
[388418174,1759162263301,-1000.0,0.00023766,2]
[388418188,1759162263428,-241.05829301,0.00023766,2]
[388418203,1759162263556,-500.0,0.00023766,2]
[388418216,1759162263685,-480.0,0.00023767,2]
[388418230,1759162263812,-480.0,0.00023767,2]
[388418270,1759162264196,-1166.91,0.00023667,2]
[388418283,1759162264314,-1397.46,0.00023767,2]
[388418295,1759162264427,-480.0,0.00023769,2]
[388418303,1759162264537,-480.0,0.00023769,2]
[388418304,1759162264644,-480.0,0.00023769,2]
[388418305,1759162264755,-480.0,0.00023769,2]
[388418306,1759162264861,-480.0,0.00023769,2]
[388418432,1759162268875,-128.40170699,0.00023668,2]
[388418445,1759162268998,-480.0,0.00023668,2]
[388418457,1759162269113,-480.0,0.00023668,2]
[388418469,1759162269231,-13.45829301,0.00023668,2]
[388418471,1759162269241,-466.54170699,0.00023763,2]
[388418490,1759162269434,-13.45829301,0.00023763,2]
[388418493,1759162269443,-466.54170699,0.00023763,2]
[388418517,1759162269684,-71.27,0.00023763,2]
[388418576,1759162270268,5501.0142,0.00022801,2]
[388418599,1759162270487,-985.9,0.00023762,2]
[388418611,1759162270608,-23.14829301,0.00023763,2]
[388418624,1759162270736,-480.0,0.00023763,2]
[388418637,1759162270861,-480.0,0.00023763,2]
[388418650,1759162270985,-300.0,0.00023765,2]
[388418665,1759162271113,-480.0,0.00023769,2]
[388418679,1759162271249,-1944.98283878,0.00023773,2]
[388418694,1759162271389,-75.0488653,0.00023773,2]
[388418711,1759162271557,-461.85000582,0.00023773,2]
[388418725,1759162271681,-2147.59548447,0.00023773,2]
[388418742,1759162271834,-4323.85,0.00023668,2]
[388418787,1759162272291,-4827.25775021,0.00023789,2]
[388418798,1759162272409,-160.0,0.00023832,4]
[388418870,1759162273812,-255.71127503,0.00023762,2]
[388418876,1759162273925,-224.28872497,0.00023762,2]
[388418877,1759162273934,-1128.02127503,0.00023842,2]
[388418889,1759162274153,-2677.11480903,0.00023842,2]
[388419036,1759162277883,5000.0,0.00023401,2]
[388419084,1759162280016,-301.67075598,0.00023647,12]
[388419163,1759162314331,900.0,0.00023647,2]
[388419164,1759162324038,157.208014,0.00022821,2]
[388419165,1759162337509,376.00654605,0.00023566,2]
[388419166,1759162342389,740.0,0.00023647,2]
[388419170,1759162395635,267.0,0.00023613,2]
[388419171,1759162494870,6956.45392799,0.00023,22]
[388419172,1759162495002,10000.01,0.00023,22]
[388419173,1759162495108,10000.01,0.00023,22]
[388419174,1759162495211,10000.01,0.00023,22]
[388419175,1759162495302,10000.01,0.00023,22]
[388419176,1759162495403,10000.01,0.00023,22]
[388419177,1759162495507,10000.01,0.00023,22]
[388419178,1759162495616,10000.01,0.00023,22]
[388419179,1759162495724,10000.01,0.00023,22]
[388419180,1759162495832,10000.01,0.00023,22]
[388419181,1759162495860,3043.45607201,0.00023,22]
[388419182,1759162531154,698.23337654,0.00023567,2]
[388419183,1759162540541,-3603.35850815,0.00023663,2]
[388419184,1759162540940,-2793.2929837,0.00023663,2]
[388419185,1759162541068,-1200.0,0.00023665,2]
[388419186,1759162541175,-813.4240326,0.00023666,2]
[388419187,1759162541660,-386.5759674,0.00023666,2]
[388419188,1759162541775,-300.0,0.00023666,2]
[388419189,1759162541882,-300.0,0.00023666,2]
[388419190,1759162541991,-300.0,0.00023666,2]
[388419191,1759162542097,-480.0,0.00023666,2]
[388419192,1759162542180,-480.0,0.00023666,2]
[388419193,1759162542260,-480.0,0.00023666,2]
[388419194,1759162542354,-480.0,0.00023666,2]
[388419195,1759162542467,-480.0,0.00023666,2]
[388419196,1759162542578,-480.0,0.00023666,2]
[388419197,1759162542675,-622.33,0.00023667,2]
[388419198,1759162542842,-508.64960983,0.00023666,2]
[388419199,1759162542958,-1493.14,0.00023667,2]
[388419200,1759162543066,-480.0,0.00023667,2]
[388419201,1759162543162,-706.99,0.00023667,2]
[388419202,1759162543278,-480.0,0.00023667,2]
[388419203,1759162543402,-626.26,0.00023667,2]
[388419204,1759162543517,-480.0,0.00023667,2]
[388419205,1759162544003,-543.36,0.00023667,2]
[388419206,1759162545013,-538.42,0.00023667,2]
[388419207,1759162545512,-1076.84,0.00023667,2]
[388419208,1759162546070,-2153.68,0.00023667,2]
[388419209,1759162546578,-4307.36,0.00023667,2]
[388419210,1759162547054,-1385.29,0.00023667,2]
[388419211,1759162547172,-480.0,0.00023667,2]
[388419212,1759162547288,-2193.82,0.00023667,2]
[388419213,1759162547398,-210.37918064,0.00023667,2]
[388419214,1759162547508,-500.0,0.00023667,2]
[388419215,1759162550600,-480.0,0.00023666,2]
[388419216,1759162550709,-480.0,0.00023666,2]
[388419217,1759162550833,-500.0,0.00023667,2]
[388419218,1759162550950,-572.57652123,0.00023667,2]
[388419219,1759162551051,-500.0,0.00023667,2]
[388419220,1759162551170,-500.0,0.00023667,2]
[388419221,1759162551289,-993.59695754,0.00023667,2]
[388419222,1759162551649,-1947.66304246,0.00023667,2]
[388419223,1759162551781,-480.0,0.00023667,2]
[388419224,1759162551899,-480.0,0.00023667,2]
[388419225,1759162552014,-480.0,0.00023667,2]
[388419226,1759162552130,-514.35,0.00023667,2]
[388419227,1759162552238,-480.0,0.00023667,2]
[388419228,1759162563484,-480.0,0.00023666,2]
[388419229,1759162563610,-582.25,0.00023666,2]
[388419230,1759162563743,-480.0,0.00023666,2]
[388419231,1759162563878,-480.0,0.00023666,2]
[388419232,1759162564002,-300.0,0.00023666,2]
[388419233,1759162564822,-500.0,0.000235,2]
[388419234,1759162564950,-480.0,0.00023666,2]
[388419235,1759162565943,-480.0,0.00023666,2]
[388419236,1759162566652,-3291.85088589,0.00023667,2]
[388419237,1759162566761,-10000.01,0.00023667,2]
[388419238,1759162566872,-480.0,0.00023667,2]
[388419239,1759162567008,-9040.01,0.00023667,2]
[388419240,1759162567152,-10000.01,0.00023667,2]
[388419241,1759162567287,-10000.01,0.00023667,2]
[388419242,1759162567426,-7188.10911411,0.00023667,2]
[388419243,1759162567436,-1991.54,0.00023668,2]
[388419244,1759162567446,-480.0,0.00023668,2]
[388419245,1759162567456,-340.36088589,0.00023668,2]
[388419246,1759162567570,-777.51911411,0.00023668,2]
[388419247,1759162567581,-4505.14,0.00023668,2]
[388419248,1759162567591,-908.79,0.00023668,2]
[388419249,1759162567602,-710.44,0.00023668,2]
[388419250,1759162567612,-2384.49,0.00023668,2]
[388419251,1759162567622,-713.63088589,0.00023668,2]
[388419252,1759162570516,-480.0,0.00023666,2]
[388419253,1759162570627,-480.0,0.00023666,2]
[388419254,1759162570739,-1632.24911411,0.00023668,2]
[388419255,1759162570849,-752.26,0.00023668,2]
[388419256,1759162570964,-568.51,0.00023668,2]
[388419257,1759162571596,-4060.8,0.00023668,2]
[388419258,1759162572118,-1878.41,0.00023668,2]
[388419259,1759162572225,-1399.31,0.00023668,2]
[388419260,1759162572331,-1444.57,0.00023668,2]
[388419261,1759162572846,-555.43,0.00023668,2]
[388419262,1759162572861,-653.07177178,0.00023668,2]
[388419263,1759162572979,-1346.92822822,0.00023668,2]
[388419264,1759162572989,-52.38177178,0.00023752,10]
[388419265,1759162573109,-164.40822822,0.00023752,10]
[388419266,1759162573120,-180.66,0.00023752,10]
[388419267,1759162573130,-150.55,0.00023752,10]
[388419268,1759162573141,-707.96,0.00023753,3]
[388419269,1759162573152,-198.33179607,0.00023761,2]
[388419270,1759162573162,-263.77356863,0.00023761,2]
[388419271,1759162573172,-334.31640708,0.00023762,2]
[388419272,1759162610323,-10000.01,0.00023662,2]
[388419273,1759162610639,-10000.01,0.00023662,2]
[388419274,1759162611011,-10000.01,0.00023662,2]
[388419275,1759162611279,-10000.01,0.00023662,2]
[388419276,1759162611714,-10000.01,0.00023662,2]
[388419277,1759162611991,-10000.01,0.00023662,2]
[388419278,1759162612277,-10000.01,0.00023662,2]
[388419279,1759162612564,-10000.01,0.00023662,2]
[388419280,1759162620350,-808.54,0.00023652,10]
[388419281,1759162620580,-8382.93,0.00023662,2]
[388419282,1759162620712,-10000.01,0.00023662,2]
[388419283,1759162640614,-752.79,0.00023652,10]
[388419284,1759162640734,-300.0,0.00023661,2]
[388419285,1759162641122,-7894.43,0.00023662,2]
[388419286,1759162641355,-10000.01,0.00023662,2]
[388419287,1759162641498,-2310.19,0.00023652,3]
[388419288,1759162641509,-1200.0,0.00023661,2]
[388419289,1759162641518,-6489.82,0.00023662,2]
[388419290,1759162641683,-10000.01,0.00023662,2]
[388419291,1759162642033,-10000.01,0.00023662,2]
[388419292,1759162642342,-10000.01,0.00023662,2]
[388419293,1759162642631,-10000.01,0.00023662,2]
[388419294,1759162643012,-10000.01,0.00023662,2]
[388419295,1759162650391,-10000.01,0.00023662,2]
[388419296,1759162650666,-10000.01,0.00023662,2]
[388419297,1759162658882,5000.0,0.00023401,2]
[388419298,1759162667023,5000.0,0.00023401,2]
[388419301,1759162670659,-1155.09,0.00023652,3]
[388419302,1759162670787,-577.55,0.00023652,3]
[388419303,1759162671138,-6534.73,0.00023662,2]
[388419304,1759162671280,-10000.01,0.00023662,2]
[388419305,1759162671426,-10000.01,0.00023662,2]
[388419306,1759162671639,-10000.01,0.00023662,2]
[388419307,1759162671978,-10000.01,0.00023662,2]
[388419308,1759162672295,-10000.01,0.00023662,2]
[388419309,1759162672568,-10000.01,0.00023662,2]
[388419310,1759162675280,5000.0,0.00023401,2]
[388419311,1759162680768,-161.86,0.00023652,10]
[388419312,1759162680884,-288.77,0.00023652,3]
[388419313,1759162681251,-9098.75,0.00023662,2]
[388419314,1759162681411,-10000.01,0.00023662,2]
[388419315,1759162683148,5000.0,0.00023401,2]
[388419316,1759162691891,5000.0,0.00023401,2]
[388419317,1759162697812,25785.504752,0.00022844,2]
[388419318,1759162699924,5000.0,0.00023401,2]
[388419319,1759162700415,-809.35,0.00023652,10]
[388419320,1759162700536,-866.34,0.00023653,3]
[388419321,1759162700652,-300.0,0.00023661,2]
[388419322,1759162701148,-6048.63,0.00023662,2]
[388419323,1759162701321,-10000.01,0.00023662,2]
[388419324,1759162701458,-10000.01,0.00023662,2]
[388419325,1759162701620,-10000.01,0.00023662,2]
[388419326,1759162701921,-10000.01,0.00023662,2]
[388419327,1759162702106,-10000.01,0.00023662,2]
[388419328,1759162702236,-10000.01,0.00023662,2]
[388419329,1759162702547,-10000.01,0.00023662,2]
[388419330,1759162708089,5000.0,0.00023401,2]
[388419331,1759162710477,-253.0,0.00023635,2]
[388419332,1759162710715,-9494.01,0.00023662,2]
[388419333,1759162716069,5000.0,0.00023401,2]
[388419334,1759162717156,300.0,0.000234,2]
[388419335,1759162718692,-283.64297704,0.000235,2]
[388419336,1759162720718,-16.35702296,0.000235,2]
[388419337,1759162720831,-300.0,0.000235,2]
[388419338,1759162724418,5000.0,0.000235,2]
[388419340,1759162728107,-289.07742182,0.00023661,2]
[388419341,1759162732396,4367.29595408,0.000235,2]
[388419342,1759162741023,5000.0,0.00023401,2]
[388419343,1759162744594,232.762659,0.00022662,2]
[388419344,1759162748399,5000.0,0.00023401,2]
[388419345,1759162750470,-632.70404592,0.000235,2]
[388419346,1759162756743,5000.0,0.000235,2]
[388419347,1759162773293,5000.0,0.00023485,2]
[388419348,1759162773810,-245.48,0.000235,2]
[388419349,1759162781252,5000.0,0.00023485,2]
[388419350,1759162787391,-339.43481762,0.000235,2]
[388419351,1759162796548,0.01,0.00023485,2]
[388419352,1759162796651,4999.99,0.00023485,2]
[388419353,1759162801641,-480.0,0.000235,2]
[388419354,1759162804391,-590.58,0.000235,2]
[388419355,1759162805099,5000.0,0.00023485,2]
[388419356,1759162806322,-597.66753696,0.000235,2]
[388419357,1759162807826,-152.0,0.000235,2]
[388419358,1759162809800,-1915.06742182,0.000235,2]
[388419359,1759162812508,-259.09,0.000235,2]
[388419360,1759162814609,-300.0,0.000235,2]
[388419361,1759162817141,-120.6802236,0.000235,2]
[388419362,1759162821078,1915.06742182,0.00023485,2]
[388419363,1759162821190,0.02,0.00023485,2]
[388419364,1759162821302,3084.91257818,0.00023485,2]
[388419365,1759162829038,5000.0,0.00023485,2]
[388419366,1759162830419,220.55,0.000234,2]
[388419367,1759162837155,1694.54742182,0.00023485,2]
[388419368,1759162837266,3305.45257818,0.00023485,2]
[388419369,1759162845050,5000.0,0.00023485,2]
[388419370,1759162845917,160.179414,0.0002254,22]
[388419371,1759162853796,1534.37800782,0.00023485,2]
[388419372,1759162853915,3465.62199218,0.00023485,2]
[388419373,1759162858248,157.0,9.2e-07,2]
[388419374,1759162859271,157.0,9.2e-07,2]
[388419375,1759162862242,5000.0,0.00023485,2]
[388419377,1759162870905,1220.38800782,0.00023485,2]
[388419378,1759162871019,3779.61199218,0.00023485,2]
[388419381,1759162879217,5000.0,0.00023485,2]
[388419384,1759162887850,1220.39800782,0.00023485,2]
[388419385,1759162887956,3322.98440635,0.00023485,2]
[388419388,1759162895774,5000.0,0.00023485,2]
[388419389,1759162903328,1000.0,0.00022638,2]
[388419390,1759162903939,677.02559365,0.00023485,2]
[388419391,1759162904051,4322.97440635,0.00023485,2]
[388419392,1759162919721,5000.0,0.00023401,2]
[388419394,1759162927922,5000.0,0.00023485,2]
[388419395,1759162943372,5000.0,0.00023485,2]
[388419396,1759162952111,0.01,0.00023485,2]
[388419397,1759162952238,4999.99,0.00023485,2]
[388419398,1759162967956,5000.0,0.00023485,2]
[388419399,1759162976410,5000.0,0.00023485,2]
[388419403,1759162991861,0.01,0.00023485,2]
[388419404,1759162991993,4999.99,0.00023485,2]
[388419405,1759162999747,5000.0,0.00023485,2]
[388419406,1759163014239,0.02,0.00019178,2]
[388419407,1759163014342,4999.98,0.00019178,2]
[388419408,1759163015828,157.71852885,0.00023485,2]
[388419409,1759163015943,4842.28147115,0.00023485,2]
[388419410,1759163018128,157.74852885,0.00023466,2]
[388419411,1759163018236,725.42019253,0.00023466,2]
[388419412,1759163023890,5000.0,0.00023485,2]
[388419413,1759163040491,4274.58980747,0.00023485,2]
[388419414,1759163040543,725.41019253,0.00023485,2]
[388419415,1759163042619,160.41220625,0.00023409,5]
[388419416,1759163048942,5000.0,0.00023401,2]
[388419417,1759163064499,326.42169759,0.00023401,2]
[388419418,1759163064525,4673.57830241,0.00023401,2]
[388419419,1759163072994,5000.0,0.00023401,2]
[388419420,1759163088316,5000.0,0.00023401,2]
[388419421,1759163096142,5000.0,0.00023401,2]
[388419422,1759163111859,5000.0,0.00023401,2]
[388419423,1759163119722,5000.0,0.00023401,2]
[388419424,1759163141395,5000.0,0.00023401,2]
[388419425,1759163149783,5000.0,0.00023401,2]
[388419426,1759163165217,5000.0,0.00023401,2]
[388419429,1759163173255,5000.0,0.00023401,2]
[388419430,1759163188675,5000.0,0.00023401,2]
[388419432,1759163196906,5000.0,0.00023401,2]
[388419433,1759163210905,6871.1554899,0.00022554,2]
[388419434,1759163212404,5000.0,0.00023401,2]
[388419435,1759163215243,-177.59204326,0.00023425,2]
[388419436,1759163220350,5000.0,0.00023401,2]
[388419437,1759163236007,5000.0,0.00023401,2]
[388419438,1759163239532,571.606455,0.0002255,2]
[388419439,1759163244040,5000.0,0.00023401,2]
[388419442,1759163259298,5000.0,0.00023401,2]
[388419443,1759163267567,5000.0,0.00023401,2]
[388419444,1759163283157,5000.0,0.00023401,2]
[388419445,1759163289037,44052.31,0.000234,2]
[388419446,1759163291154,5000.0,0.00023401,2]
[388419447,1759163307463,5000.0,0.00023401,2]
[388419448,1759163315473,3241.72101543,0.00023401,2]
[388419449,1759163318050,301.99999967,0.00033806,120]
[388419450,1759163331883,5000.0,0.00023401,2]
[388419451,1759163341527,-772.77263119,0.00023462,2]
[388419452,1759163341558,-404.2877432,0.000235,2]
[388419453,1759163341590,-800.0,0.00023505,2]
[388419454,1759163341621,-800.0,0.00023525,2]
[388419455,1759163341651,-800.0,0.00023527,2]
[388419456,1759163341685,-1200.0,0.00023539,2]
[388419457,1759163355353,5000.0,0.00023401,2]
[388419458,1759163356689,-300.0,0.00023539,2]
[388419459,1759163356717,-800.0,0.0002354,2]
[388419460,1759163361584,-480.0,0.00023539,2]
[388419461,1759163362308,-2709.83649201,0.0002354,2]
[388419462,1759163362399,-10000.01,0.0002354,2]
[388419463,1759163362552,-3501.7669611,0.0002354,2]
[388419464,1759163362582,-800.0,0.0002354,2]
[388419465,1759163362609,-596.4760778,0.00023551,2]
[388419466,1759163362715,-203.5239222,0.00023551,2]
[388419467,1759163362759,-470.18901846,0.00023551,2]
[388419468,1759163362789,-484.98549222,0.00023554,2]
[388419469,1759163362817,-500.0,0.00023554,2]
[388419470,1759163362845,-500.0,0.00023554,2]
[388419471,1759163362875,-500.0,0.00023554,2]
[388419472,1759163362903,-500.0,0.00023554,2]
[388419473,1759163362933,-500.0,0.00023554,2]
[388419474,1759163362962,-500.0,0.00023554,2]
[388419475,1759163362990,-597.30794849,0.00023554,2]
[388419476,1759163363019,-395.04508166,0.00023554,2]
[388419477,1759163363219,-104.95491834,0.00023554,2]
[388419478,1759163371450,-480.0,0.00023539,2]
[388419479,1759163371482,-480.0,0.00023539,2]
[388419480,1759163371537,-8080.01,0.00023554,2]
[388419481,1759163371621,-10000.01,0.00023554,2]
[388419482,1759163371804,-10000.01,0.00023554,2]
[388419483,1759163371914,-10000.01,0.00023554,2]
[388419484,1759163372046,-10000.01,0.00023554,2]
[388419485,1759163372155,-1919.95,0.00023554,2]
[388419486,1759163372187,-500.0,0.00023554,2]
[388419487,1759163372219,-500.0,0.00023554,2]
[388419488,1759163372249,-500.0,0.00023554,2]
[388419489,1759163372282,-631.27759261,0.00023554,2]
[388419490,1759163372314,-500.0,0.00023554,2]
[388419491,1759163372348,-397.55481478,0.00023554,2]
[388419492,1759163372534,-102.44518522,0.00023554,2]
[388419493,1759163372566,-500.0,0.00023554,2]
[388419494,1759163372605,-500.0,0.00023554,2]
[388419495,1759163372638,-500.0,0.00023554,2]
[388419496,1759163372858,-335.16243743,0.00023554,2]
[388419497,1759163372894,-500.0,0.00023554,2]
[388419498,1759163372926,-500.0,0.00023554,2]
[388419499,1759163372958,-500.0,0.00023554,2]
[388419500,1759163372990,-500.0,0.00023554,2]
[388419501,1759163373022,-239.11076392,0.00023554,2]
[388419502,1759163373060,-500.0,0.00023554,2]
[388419503,1759163373104,-146.57322686,0.00023554,2]
[388419504,1759163373503,-353.42677314,0.00023554,2]
[388419505,1759163373513,-146.57322686,0.00023554,2]
[388419506,1759163376815,2358.2792056,0.00022559,2]
[388419507,1759163377933,213.98603716,0.00023401,2]
[388419508,1759163377963,4786.01396284,0.00023401,2]
[388419509,1759163391481,-492.41258199,0.00023539,2]
[388419510,1759163391509,-480.0,0.00023539,2]
[388419511,1759163391537,-480.0,0.00023539,2]
[388419512,1759163391566,-165.16,0.00023552,10]
[388419513,1759163391595,-353.42677314,0.00023554,2]
[388419514,1759163391625,-500.0,0.00023554,2]
[388419515,1759163391655,-500.0,0.00023554,2]
[388419516,1759163391684,-302.65033911,0.00023554,2]
[388419517,1759163391717,-351.01519068,0.00023554,2]
[388419518,1759163391748,-500.0,0.00023554,2]
[388419519,1759163391779,-500.0,0.00023554,2]
[388419520,1759163391810,-250.68023016,0.00023554,2]
[388419521,1759163392187,-481.55922695,0.00023539,2]
[388419522,1759163392218,-249.31976984,0.00023554,2]
[388419523,1759163392247,-500.0,0.00023554,2]
[388419524,1759163392276,-500.0,0.00023554,2]
[388419525,1759163392304,-500.0,0.00023554,2]
[388419526,1759163392335,-500.0,0.00023554,2]
[388419527,1759163392364,-500.0,0.00023554,2]
[388419528,1759163392393,-500.0,0.00023554,2]
[388419529,1759163392420,-500.0,0.00023554,2]
[388419530,1759163392448,-500.0,0.00023554,2]
[388419531,1759163392478,-38.25200642,0.00023554,2]
[388419532,1759163392629,-461.74799358,0.00023554,2]
[388419533,1759163392659,-500.0,0.00023554,2]
[388419534,1759163392688,-500.0,0.00023554,2]
[388419535,1759163392720,-500.0,0.00023554,2]